fUSD/lending_fUSD_20250609
["ID","MTS","AMOUNT","RATE_DAILY","PERIOD"]
[365053702,1749427875112,-866.26,0.00019845,2]
[365053703,1749427875122,-559.86,0.00019845,2]
[365053704,1749427875132,-480.0,0.00019845,2]
[365053705,1749427875142,-480.0,0.00019845,2]
[365053706,1749427875152,-480.0,0.00019845,2]
[365053707,1749427875161,-358.49722896,0.00019845,2]
[365053708,1749427875171,-505.14,0.00019845,2]
[365053709,1749427875181,-480.0,0.00019845,2]
[365053710,1749427875190,-480.0,0.00019845,2]
[365053711,1749427875199,-197.63298966,0.00019845,2]
[365053712,1749427875209,-480.0,0.00019845,2]
[365053713,1749427875218,-480.0,0.00019845,2]
[365053714,1749427875227,-519.01,0.00019845,2]
[365053715,1749427875237,-1258.9,0.00019845,2]
[365053716,1749427875247,-480.0,0.00019845,2]
[365053717,1749427875256,-563.07,0.00019845,2]
[365053718,1749427875266,-631.72,0.00019845,2]
[365053719,1749427875275,-480.0,0.00019845,2]
[365053720,1749427875284,-487.95,0.00019845,2]
[365053721,1749427875293,-526.48,0.00019845,2]
[365053722,1749427875302,-895.53,0.00019845,2]
[365053723,1749427875311,-691.91,0.00019845,2]
[365053724,1749427875321,-1013.38,0.00019845,2]
[365053725,1749427875330,-480.0,0.00019845,2]
[365053726,1749427875339,-522.65,0.00019845,2]
[365053727,1749427875349,-480.0,0.00019845,2]
[365053728,1749427875360,-618.45165601,0.00019845,2]
[365053729,1749427875370,-644.32,0.00019845,2]
[365053730,1749427875379,-551.92,0.00019845,2]
[365053731,1749427875389,-582.88,0.00019845,2]
[365053732,1749427875399,-480.0,0.00019845,2]
[365053733,1749427875409,-480.0,0.00019845,2]
[365053734,1749427875418,-150.0,0.00019853,2]
[365053735,1749427875428,-150.0,0.00019856,2]
[365053736,1749427875437,-150.0,0.00019863,2]
[365053737,1749427875447,-150.0,0.00019894,2]
[365053738,1749427875456,-209.4,0.000199,2]
[365053739,1749427875466,-159.255477,0.000199,7]
[365053740,1749427875475,-151.200908,0.000199,7]
[365053741,1749427875485,-175.754593,0.000199,7]
[365053742,1749427875495,-164.15191823,0.000199,2]
[365053743,1749427875627,-1278.89127795,0.000199,2]
[365053744,1749427875637,-1060.48551062,0.000199,2]
[365053745,1749427875646,-150.0,0.00019918,2]
[365053746,1749427875656,-150.0,0.00019927,2]
[365053747,1749427875665,-150.0,0.00019934,2]
[365053748,1749427875674,-150.0,0.00019934,2]
[365053749,1749427875685,-215.0738,0.00019934,2]
[365053750,1749427875694,-800.0,0.00019943,2]
[365053751,1749427875704,-2322.43425576,0.00019969,2]
[365053752,1749427875713,-1000.0,0.00019985,2]
[365053753,1749427875723,-1000.0,0.00019986,2]
[365053754,1749427875733,-159.255477,0.00019987,4]
[365053755,1749427875743,-151.200908,0.00019987,4]
[365053756,1749427875754,-168820.8912935,0.00019989,2]
[365053757,1749427875766,-1000.0,0.0001999,2]
[365053758,1749427875775,-150.0,0.00019995,2]
[365053759,1749427875787,-1076.0418,0.00019999,2]
[365053760,1749427875797,-2000.0,0.00019999,2]
[365053761,1749427875807,-500.0,0.00019999,2]
[365053762,1749427875817,-541.35284072,0.00019999,2]
[365053763,1749427875826,-847330.38449035,0.0002,2]
[365053764,1749427876129,-947.72946,0.0002,2]
[365053765,1749427876181,-286.4582218,0.0001968,2]
[365053766,1749427876192,-193.5417782,0.0001968,2]
[365053767,1749427876201,-865.3582218,0.0002,2]
[365053768,1749427876216,-6723.29679065,0.0002,2]
[365053769,1749427876638,-480.0,0.00018693,2]
[365053770,1749427876648,-480.0,0.00018858,2]
[365053771,1749427876659,-480.0,0.00019022,2]
[365053772,1749427876668,-480.0,0.00019186,2]
[365053773,1749427876677,-480.0,0.00019351,2]
[365053774,1749427876687,-360.0,0.00019515,2]
[365053775,1749427876696,-480.0,0.00019844,2]
[365053776,1749427876707,-2348.93622717,0.0002,2]
[365053777,1749427934490,225.55,0.00013699,2]
[365053779,1749428942170,150.0,0.00017052,2]
[365053780,1749428946136,535.23,0.00015914,2]
[365053796,1749429031742,-204.0,0.00017274,2]
[365053797,1749429031753,-294.07654988,0.00017415,2]
[365053798,1749429031797,-298.1025574,0.00017415,2]
[365053799,1749429031808,-474.87237804,0.00017415,2]
[365053800,1749429031963,-10.94851468,0.00017415,2]
[365053801,1749429031972,-182.77,0.0001772,2]
[365053802,1749429031982,-412.34,0.00018,2]
[365053803,1749429031993,-162.27,0.00018,8]
[365053804,1749429032002,-535.23,0.00018178,2]
[365053805,1749429032012,-1078.0,0.00018332,2]
[365053806,1749429032022,-207.4,0.00018565,2]
[365053807,1749429032032,-300.0,0.00018592,2]
[365053808,1749429032041,-1200.0,0.00018592,2]
[365053809,1749429032051,-474.5747,0.00018593,2]
[365053810,1749429032060,-577.13,0.00018593,2]
[365053811,1749429032070,-1000.0,0.00018593,2]
[365053813,1749429032079,-25449.6223,0.00018594,2]
[365053815,1749429032088,-1445.3475638,0.0001863,2]
[365053817,1749429032097,-180.69557978,0.0001863,2]
[365053819,1749429032106,-2500.0,0.0001863,2]
[365053821,1749429032115,-151.0,0.00018682,2]
[365053823,1749429032125,-166.36,0.00018683,2]
[365053825,1749429032135,-480.0,0.00018693,2]
[365053827,1749429032144,-480.0,0.00018693,2]
[365053829,1749429032153,-480.0,0.00018693,2]
[365053831,1749429032163,-480.0,0.00018693,2]
[365053833,1749429032172,-480.0,0.00018693,2]
[365053835,1749429032181,-480.0,0.00018693,2]
[365053837,1749429032191,-559.36337239,0.00018693,2]
[365053839,1749429032200,-480.0,0.00018693,2]
[365053841,1749429032210,-180.0,0.00018693,2]
[365053843,1749429032219,-480.0,0.00018693,2]
[365053844,1749429032229,-480.0,0.00018693,2]
[365053846,1749429032238,-656.65,0.00018693,2]
[365053848,1749429032247,-613.08,0.00018693,2]
[365053851,1749429032257,-480.0,0.00018693,2]
[365053854,1749429032266,-480.0,0.00018693,2]
[365053857,1749429032276,-657.64,0.00018693,2]
[365053859,1749429032285,-480.0,0.00018693,2]
[365053861,1749429032295,-480.0,0.00018693,2]
[365053863,1749429032306,-480.0,0.00018693,2]
[365053865,1749429032316,-636.55,0.00018693,2]
[365053867,1749429032325,-480.0,0.00018693,2]
[365053869,1749429032334,-716.8,0.00018693,2]
[365053871,1749429032343,-480.0,0.00018693,2]
[365053873,1749429032353,-480.0,0.00018693,2]
[365053875,1749429032363,-480.0,0.00018693,2]
[365053877,1749429032373,-480.0,0.00018693,2]
[365053879,1749429032382,-480.0,0.00018693,2]
[365053881,1749429032393,-480.0,0.00018693,2]
[365053883,1749429032407,-480.0,0.00018693,2]
[365053885,1749429032421,-480.0,0.00018693,2]
[365053887,1749429032430,-480.0,0.00018693,2]
[365053889,1749429032439,-480.0,0.00018693,2]
[365053891,1749429032449,-480.0,0.00018693,2]
[365053893,1749429032459,-480.0,0.00018693,2]
[365053895,1749429032468,-480.0,0.00018693,2]
[365053896,1749429032477,-480.0,0.00018693,2]
[365053898,1749429032486,-480.0,0.00018693,2]
[365053900,1749429032496,-480.0,0.00018693,2]
[365053902,1749429032505,-480.0,0.00018693,2]
[365053904,1749429032514,-480.0,0.00018693,2]
[365053906,1749429032523,-480.0,0.00018693,2]
[365053908,1749429032533,-657.78,0.00018693,2]
[365053910,1749429032543,-480.0,0.00018693,2]
[365053912,1749429032552,-495.01,0.00018693,2]
[365053914,1749429032561,-881.01,0.00018693,2]
[365053916,1749429032570,-1237.62,0.00018693,2]
[365053918,1749429032580,-759.72,0.00018693,2]
[365053920,1749429032589,-999.11,0.00018693,2]
[365053922,1749429032598,-591.95,0.00018693,2]
[365053924,1749429032607,-497.46,0.00018693,2]
[365053926,1749429032616,-480.0,0.00018693,2]
[365053928,1749429032625,-995.56,0.00018693,2]
[365053930,1749429032635,-480.0,0.00018693,2]
[365053932,1749429032643,-420.0,0.00018693,2]
[365053934,1749429032653,-502.43394038,0.00018693,2]
[365053936,1749429032662,-480.0,0.00018693,2]
[365053938,1749429032671,-480.0,0.00018693,2]
[365053940,1749429032680,-577.51,0.00018693,2]
[365053941,1749429032689,-480.0,0.00018693,2]
[365053943,1749429032698,-172.02465452,0.00018693,2]
[365053946,1749429032711,-307.97534548,0.00018693,2]
[365053948,1749429032719,-212.61619045,0.00018693,2]
[365054076,1749429034131,214.27,0.00013699,2]
[365055691,1749429270711,500.0,0.00016164,2]
[365055692,1749429328419,500.0,0.00016164,2]
[365055693,1749429762995,150.0,0.00017054,2]
[365055694,1749429975315,528.52,0.00015634,2]
[365055695,1749430048745,213.25,0.00013699,2]
[365055697,1749430136973,-1626.31952488,0.0001712,7]
[365055698,1749430136995,-738.63236332,0.0001712,2]
[365055700,1749430211851,204.0,0.00016326,2]
[365055708,1749430231914,-1429.46,0.0001745,2]
[365055709,1749430231924,-2629.75,0.00017605,2]
[365055710,1749430231933,-674.71579601,0.00017704,2]
[365055711,1749430231943,-988.66248099,0.00017707,2]
[365055712,1749430231954,-1047.85311258,0.00017707,2]
[365055713,1749430231965,-566.40440643,0.00017707,2]
[365055714,1749430231975,-155.22,0.0001779,2]
[365055715,1749430231984,-478.37559357,0.00017831,2]
[365055716,1749430231999,-721.62440643,0.00017831,2]
[365055717,1749430232008,-118.37559357,0.00017832,2]
[365055718,1749430232019,-881.62440643,0.00017832,2]
[365055719,1749430232029,-300.0,0.0001786,2]
[365055720,1749430232038,-300.0,0.00017861,2]
[365055721,1749430232048,-3157.71,0.00017862,2]
[365055722,1749430232057,-1951.34,0.00017868,2]
[365055723,1749430232067,-528.52,0.00017898,2]
[365055724,1749430232076,-250.0,0.00017906,2]
[365055725,1749430232086,-371.1,0.00018,2]
[365055726,1749430232096,-54388.99,0.00018033,2]
[365055727,1749430232109,-600.0,0.00018263,4]
[365055728,1749430232121,-600.0,0.00018548,4]
[365055729,1749430232130,-207.4,0.00018565,2]
[365055730,1749430232140,-1469.4487,0.00018593,2]
[365055731,1749430232151,-342.70312786,0.0001864,2]
[365055732,1749430232161,-13489.7886525,0.00018674,2]
[365055733,1749430232173,-2528.95520549,0.00018674,2]
[365055734,1749430232185,-297.31,0.00018674,2]
[365055735,1749430232197,-320.29041264,0.00018674,2]
[365055736,1749430232209,-2229.0568171,0.00018674,2]
[365055737,1749430232220,-7610.40000006,0.00018674,2]
[365055738,1749430232235,-931.80899148,0.00018674,2]
[365055739,1749430232247,-459.52483627,0.00018674,2]
[365055740,1749430232256,-484.15832986,0.00018674,2]
[365055741,1749430232266,-151.0,0.00018719,2]
[365055742,1749430232275,-430.56040165,0.0001873,2]
[365055743,1749430232285,-480.0,0.0001873,2]
[365055745,1749430232295,-480.0,0.0001873,2]
[365055747,1749430232305,-480.0,0.0001873,2]
[365055749,1749430232314,-394.75643222,0.0001873,2]
[365055751,1749430232326,-85.24356778,0.0001873,2]
[365055752,1749430232336,-480.0,0.0001873,2]
[365055754,1749430232345,-480.0,0.0001873,2]
[365055756,1749430232354,-480.0,0.0001873,2]
[365055758,1749430232363,-480.0,0.0001873,2]
[365055760,1749430232373,-480.0,0.0001873,2]
[365055762,1749430232382,-366.00656756,0.0001873,2]
[365055764,1749430232392,-480.0,0.0001873,2]
[365055766,1749430232402,-480.0,0.0001873,2]
[365055767,1749430232411,-480.0,0.0001873,2]
[365055769,1749430232421,-480.0,0.0001873,2]
[365055771,1749430232430,-480.0,0.0001873,2]
[365055773,1749430232440,-101.97623585,0.0001873,2]
[365055775,1749430232451,-378.02376415,0.0001873,2]
[365055777,1749430232460,-360.0,0.0001873,2]
[365055779,1749430232470,-479.1611398,0.0001873,2]
[365055781,1749430232479,-480.0,0.0001873,2]
[365055782,1749430232488,-480.0,0.0001873,2]
[365055783,1749430232497,-480.0,0.0001873,2]
[365055784,1749430232508,-476.67449131,0.0001873,2]
[365055786,1749430232517,-480.0,0.0001873,2]
[365055788,1749430232527,-480.0,0.0001873,2]
[365055791,1749430232536,-480.0,0.0001873,2]
[365055794,1749430232546,-480.0,0.0001873,2]
[365055796,1749430232555,-480.0,0.0001873,2]
[365055798,1749430232565,-480.0,0.0001873,2]
[365055800,1749430232574,-480.0,0.0001873,2]
[365055802,1749430232584,-480.0,0.0001873,2]
[365055804,1749430232594,-527.80933492,0.0001873,2]
[365055806,1749430232604,-480.0,0.0001873,2]
[365055808,1749430232614,-480.0,0.0001873,2]
[365055810,1749430232624,-480.0,0.0001873,2]
[365055812,1749430232634,-480.0,0.0001873,2]
[365055814,1749430232644,-480.0,0.0001873,2]
[365055816,1749430232654,-480.0,0.0001873,2]
[365055817,1749430232663,-507.46,0.0001873,2]
[365055818,1749430232677,-480.0,0.0001873,2]
[365055819,1749430232687,-480.0,0.0001873,2]
[365055821,1749430232696,-480.0,0.0001873,2]
[365055823,1749430232706,-480.0,0.0001873,2]
[365055824,1749430232717,-480.0,0.0001873,2]
[365055826,1749430232727,-480.0,0.0001873,2]
[365055828,1749430232736,-854.92,0.0001873,2]
[365055829,1749430232745,-480.0,0.0001873,2]
[365055830,1749430232755,-480.0,0.0001873,2]
[365055831,1749430232765,-300.0,0.0001873,2]
[365055832,1749430232774,-480.0,0.0001873,2]
[365055833,1749430232783,-480.0,0.0001873,2]
[365055834,1749430232793,-480.0,0.0001873,2]
[365055835,1749430232803,-1302.98,0.0001873,2]
[365055836,1749430232812,-480.0,0.0001873,2]
[365055837,1749430232821,-480.0,0.0001873,2]
[365055838,1749430232831,-201.09112748,0.0001873,2]
[365055839,1749430232840,-480.0,0.0001873,2]
[365055840,1749430232850,-480.0,0.0001873,2]
[365055841,1749430232860,-480.0,0.0001873,2]
[365055842,1749430232869,-480.0,0.0001873,2]
[365055843,1749430232879,-480.0,0.0001873,2]
[365055844,1749430232889,-480.0,0.0001873,2]
[365055845,1749430232899,-480.0,0.0001873,2]
[365055846,1749430232908,-564.82,0.0001873,2]
[365055847,1749430232918,-480.0,0.0001873,2]
[365055848,1749430232930,-480.0,0.0001873,2]
[365055849,1749430232939,-480.0,0.0001873,2]
[365055850,1749430232948,-480.0,0.0001873,2]
[365055851,1749430232958,-480.0,0.0001873,2]
[365055852,1749430232967,-480.0,0.0001873,2]
[365055853,1749430232977,-480.0,0.0001873,2]
[365055854,1749430232987,-480.0,0.0001873,2]
[365055855,1749430232997,-480.0,0.0001873,2]
[365055856,1749430233006,-480.0,0.0001873,2]
[365055857,1749430233017,-480.0,0.0001873,2]
[365055858,1749430233026,-480.0,0.0001873,2]
[365055859,1749430233037,-480.0,0.0001873,2]
[365055860,1749430233047,-480.0,0.0001873,2]
[365055861,1749430233057,-322.23642916,0.0001873,2]
[365055862,1749430233068,-480.0,0.0001873,2]
[365055863,1749430233084,-480.0,0.0001873,2]
[365055864,1749430233095,-480.0,0.0001873,2]
[365055865,1749430233107,-480.0,0.0001873,2]
[365055866,1749430233117,-480.0,0.0001873,2]
[365055867,1749430233127,-703.84,0.0001873,2]
[365055868,1749430233137,-314.44068293,0.0001873,2]
[365055869,1749430233147,-480.0,0.0001873,2]
[365055870,1749430233157,-480.0,0.0001873,2]
[365055871,1749430233167,-480.0,0.0001873,2]
[365055872,1749430233181,-480.0,0.0001873,2]
[365055873,1749430233191,-480.0,0.0001873,2]
[365055874,1749430233201,-480.0,0.0001873,2]
[365055875,1749430233213,-480.0,0.0001873,2]
[365055876,1749430233223,-480.0,0.0001873,2]
[365055877,1749430233234,-480.0,0.0001873,2]
[365055878,1749430233244,-480.0,0.0001873,2]
[365055879,1749430233254,-480.0,0.0001873,2]
[365055880,1749430233263,-480.0,0.0001873,2]
[365055881,1749430233274,-480.0,0.0001873,2]
[365055882,1749430233283,-480.0,0.0001873,2]
[365055883,1749430233294,-511.44,0.0001873,2]
[365055884,1749430233303,-480.0,0.0001873,2]
[365055885,1749430233312,-480.0,0.0001873,2]
[365055886,1749430233322,-480.0,0.0001873,2]
[365055887,1749430233331,-480.0,0.0001873,2]
[365055888,1749430233341,-504.38,0.0001873,2]
[365055889,1749430233351,-480.0,0.0001873,2]
[365055890,1749430233361,-480.0,0.0001873,2]
[365055891,1749430233370,-480.0,0.0001873,2]
[365055892,1749430233380,-480.0,0.0001873,2]
[365055893,1749430233389,-480.0,0.0001873,2]
[365055894,1749430233400,-480.0,0.0001873,2]
[365055895,1749430233409,-480.0,0.0001873,2]
[365055896,1749430233420,-480.0,0.0001873,2]
[365055897,1749430233430,-480.0,0.0001873,2]
[365055898,1749430233439,-839.27,0.0001873,2]
[365055899,1749430233449,-480.0,0.0001873,2]
[365055900,1749430233458,-480.0,0.0001873,2]
[365055901,1749430233468,-480.0,0.0001873,2]
[365055902,1749430233478,-480.0,0.0001873,2]
[365055903,1749430233487,-480.0,0.0001873,2]
[365055904,1749430233497,-480.0,0.0001873,2]
[365055905,1749430233506,-480.0,0.0001873,2]
[365055906,1749430233515,-460.0,0.0001873,2]
[365055907,1749430233526,-480.0,0.0001873,2]
[365055908,1749430233535,-480.0,0.0001873,2]
[365055909,1749430233544,-480.0,0.0001873,2]
[365055910,1749430233554,-480.0,0.0001873,2]
[365055911,1749430233563,-597.02,0.0001873,2]
[365055912,1749430233573,-480.0,0.0001873,2]
[365055913,1749430233583,-480.0,0.0001873,2]
[365055914,1749430233592,-480.0,0.0001873,2]
[365055915,1749430233602,-480.0,0.0001873,2]
[365055916,1749430233611,-675.59,0.0001873,2]
[365055917,1749430233621,-480.0,0.0001873,2]
[365055918,1749430233630,-480.0,0.0001873,2]
[365055919,1749430233640,-480.0,0.0001873,2]
[365055920,1749430233650,-480.0,0.0001873,2]
[365055921,1749430233660,-480.0,0.0001873,2]
[365055922,1749430233671,-480.0,0.0001873,2]
[365055923,1749430233681,-480.0,0.0001873,2]
[365055924,1749430233690,-480.0,0.0001873,2]
[365055925,1749430233700,-480.0,0.0001873,2]
[365055926,1749430233709,-480.0,0.0001873,2]
[365055927,1749430233719,-5000.0,0.00018757,2]
[365055928,1749430233728,-480.0,0.00018768,2]
[365055929,1749430233737,-480.0,0.00018768,2]
[365055930,1749430233747,-547.03,0.00018768,2]
[365055931,1749430233756,-542.67,0.00018768,2]
[365055932,1749430233765,-480.0,0.00018769,2]
[365055933,1749430233775,-480.0,0.00018769,2]
[365055934,1749430233785,-480.0,0.00018769,2]
[365055935,1749430233795,-480.0,0.00018769,2]
[365055936,1749430233804,-480.0,0.00018769,2]
[365055937,1749430233813,-480.0,0.00018769,2]
[365055938,1749430233823,-480.0,0.00018769,2]
[365055939,1749430233833,-480.0,0.00018769,2]
[365055940,1749430233842,-426.75298839,0.00018769,2]
[365055941,1749430233852,-480.0,0.00018769,2]
[365055942,1749430233862,-480.0,0.00018769,2]
[365055943,1749430233872,-506.17,0.00018769,2]
[365055944,1749430233882,-480.0,0.00018769,2]
[365055945,1749430233892,-480.0,0.00018769,2]
[365055946,1749430233902,-480.0,0.00018769,2]
[365055947,1749430233912,-480.0,0.00018769,2]
[365055948,1749430233923,-480.0,0.00018769,2]
[365055949,1749430233933,-480.0,0.00018769,2]
[365055950,1749430233942,-593.72917326,0.00018769,2]
[365055951,1749430233952,-480.0,0.00018769,2]
[365055952,1749430233962,-422.90854656,0.00018769,2]
[365055953,1749430233972,-250.0,0.00018769,2]
[365055954,1749430233982,-480.0,0.00018769,2]
[365055955,1749430233993,-480.0,0.00018769,2]
[365055956,1749430234003,-556.02,0.00018769,2]
[365055957,1749430234013,-480.0,0.00018769,2]
[365055958,1749430234023,-493.16,0.00018769,2]
[365055959,1749430234035,-480.0,0.00018769,2]
[365055960,1749430234044,-480.0,0.00018769,2]
[365055961,1749430234055,-480.0,0.00018769,2]
[365055962,1749430234065,-368.11470429,0.00018769,2]
[365055963,1749430234074,-480.0,0.00018769,2]
[365055964,1749430234084,-480.0,0.00018769,2]
[365055965,1749430234094,-480.0,0.00018769,2]
[365055966,1749430234109,-480.0,0.00018769,2]
[365055967,1749430234119,-480.0,0.00018769,2]
[365055968,1749430234128,-480.0,0.00018769,2]
[365055969,1749430234139,-480.0,0.00018769,2]
[365055970,1749430234148,-480.0,0.00018769,2]
[365055971,1749430234158,-480.0,0.00018769,2]
[365055972,1749430234170,-480.0,0.00018769,2]
[365055973,1749430234181,-480.0,0.00018769,2]
[365055974,1749430234190,-420.0,0.00018769,2]
[365055975,1749430234200,-480.0,0.00018769,2]
[365055976,1749430234210,-480.0,0.00018769,2]
[365055977,1749430234219,-480.0,0.00018769,2]
[365055978,1749430234229,-480.0,0.00018769,2]
[365055979,1749430234238,-480.0,0.00018769,2]
[365055980,1749430234247,-480.0,0.00018769,2]
[365055981,1749430234257,-480.0,0.00018769,2]
[365055982,1749430234267,-425.95963904,0.00018769,2]
[365055983,1749430234278,-433.31296883,0.00018769,2]
[365055984,1749430234287,-480.0,0.00018769,2]
[365055985,1749430234296,-420.0,0.00018769,2]
[365055986,1749430234469,-480.0,0.00018769,2]
[365055987,1749430234479,-480.0,0.00018769,2]
[365055988,1749430234489,-480.0,0.00018769,2]
[365055989,1749430234498,-653.36,0.00018769,2]
[365055990,1749430234508,-480.0,0.00018769,2]
[365055991,1749430234517,-480.0,0.00018769,2]
[365055992,1749430234526,-480.0,0.00018769,2]
[365055993,1749430234535,-420.0,0.00018769,2]
[365055994,1749430234545,-480.0,0.00018769,2]
[365055995,1749430234554,-420.0,0.00018769,2]
[365055996,1749430234563,-489.46,0.00018769,2]
[365055997,1749430234572,-480.0,0.00018769,2]
[365055998,1749430234581,-480.0,0.00018769,2]
[365055999,1749430234591,-480.0,0.00018769,2]
[365056000,1749430234600,-480.0,0.00018769,2]
[365056001,1749430234609,-480.0,0.00018769,2]
[365056002,1749430234618,-261.10469976,0.00018769,2]
[365056003,1749430234627,-480.0,0.00018769,2]
[365056004,1749430234636,-420.0,0.00018769,2]
[365056005,1749430234645,-480.0,0.00018769,2]
[365056006,1749430234654,-480.0,0.00018769,2]
[365056007,1749430234663,-480.0,0.00018769,2]
[365056008,1749430234673,-480.0,0.00018769,2]
[365056009,1749430234683,-480.0,0.00018769,2]
[365056010,1749430234692,-480.0,0.00018769,2]
[365056011,1749430234701,-420.0,0.00018769,2]
[365056012,1749430234710,-480.0,0.00018769,2]
[365056013,1749430234719,-480.0,0.00018769,2]
[365056014,1749430234728,-480.0,0.00018769,2]
[365056015,1749430234738,-480.0,0.00018769,2]
[365056016,1749430234747,-480.0,0.00018769,2]
[365056017,1749430234756,-480.0,0.00018769,2]
[365056018,1749430234765,-480.0,0.00018769,2]
[365056019,1749430234774,-480.0,0.00018769,2]
[365056020,1749430234783,-480.0,0.00018769,2]
[365056021,1749430234792,-480.0,0.00018769,2]
[365056022,1749430234801,-480.0,0.00018769,2]
[365056023,1749430234810,-480.0,0.00018769,2]
[365056024,1749430234819,-480.0,0.00018769,2]
[365056025,1749430234828,-480.0,0.00018769,2]
[365056026,1749430234838,-480.0,0.00018769,2]
[365056027,1749430234847,-480.0,0.00018769,2]
[365056028,1749430234856,-480.0,0.00018769,2]
[365056029,1749430234865,-480.0,0.00018769,2]
[365056030,1749430234874,-480.0,0.00018769,2]
[365056031,1749430234883,-480.0,0.00018769,2]
[365056032,1749430234893,-480.0,0.00018769,2]
[365056033,1749430234901,-480.0,0.00018769,2]
[365056034,1749430234911,-480.0,0.00018769,2]
[365056035,1749430234921,-480.0,0.00018769,2]
[365056036,1749430234930,-480.0,0.00018769,2]
[365056037,1749430234939,-480.0,0.00018769,2]
[365056038,1749430234948,-480.0,0.00018769,2]
[365056039,1749430234957,-480.0,0.00018769,2]
[365056040,1749430234966,-480.0,0.00018769,2]
[365056041,1749430234976,-555.24980076,0.00018769,2]
[365056042,1749430234985,-310.06667555,0.00018769,2]
[365056043,1749430234994,-376.15092278,0.00018769,2]
[365056044,1749430235004,-480.0,0.0001877,2]
[365056045,1749430235013,-1341.08370068,0.00018775,2]
[365056046,1749430235023,-836.72411284,0.00018794,2]
[365056047,1749430235032,-255.69,0.00018844,2]
[365056048,1749430235041,-480.0,0.00018854,2]
[365056049,1749430235051,-1271.48,0.00018854,2]
[365056050,1749430235059,-480.0,0.00018854,2]
[365056051,1749430235069,-480.0,0.00018854,2]
[365056052,1749430235077,-480.0,0.00018854,2]
[365056053,1749430235087,-529.18,0.00018854,2]
[365056054,1749430235096,-480.0,0.00018854,2]
[365056055,1749430235108,-13323.18,0.00018854,2]
[365056056,1749430235118,-736.09,0.00018854,2]
[365056057,1749430235127,-480.0,0.00018854,2]
[365056058,1749430235136,-998.43,0.00018854,2]
[365056059,1749430235146,-1573.89,0.00018854,2]
[365056060,1749430235155,-740.72,0.00018855,2]
[365056061,1749430235164,-480.0,0.00018855,2]
[365056062,1749430235174,-572.83,0.00018855,2]
[365056063,1749430235185,-480.0,0.00018855,2]
[365056064,1749430235195,-480.0,0.00018855,2]
[365056065,1749430235204,-480.0,0.00018855,2]
[365056066,1749430235213,-869.94,0.00018855,2]
[365056067,1749430235222,-480.0,0.00018855,2]
[365056068,1749430235232,-480.0,0.00018855,2]
[365056069,1749430235242,-480.0,0.00018855,2]
[365056070,1749430235251,-480.0,0.00018855,2]
[365056071,1749430235260,-564.41,0.00018855,2]
[365056072,1749430235270,-480.0,0.00018855,2]
[365056073,1749430235279,-541.26,0.00018855,2]
[365056074,1749430235289,-480.0,0.00018855,2]
[365056075,1749430235299,-480.0,0.00018855,2]